bitfinex/quotes_ETHUSD_20250626
["timestamp","ask_amount","ask_price","bid_price","bid_amount"]
[1750964471696,1.53263317,2426.5,2425.9,0.7806]
[1750964471897,0.7556,2426.5,2426.1,0.7806]
[1750964473418,4.87677358,2426.5,2426.1,0.7806]
[1750964474527,0.7556,2426.5,2426.1,0.7806]
[1750964476825,0.98263317,2426.6,2426.1,0.7806]
[1750964477027,0.2056,2426.6,2426.1,0.2056]
[1750964477331,0.2056,2426.6,2426.2,0.7888]
[1750964477630,0.2056,2426.6,2426.2,1.24772536]
[1750964478028,0.2056,2426.6,2426.2,0.45892536]
[1750964478230,0.001,2426.7,2426.4,0.2056]
[1750964478530,0.001,2426.7,2426.5,0.7609]
[1750964478728,0.001,2426.7,2426.5,0.9665]
[1750964478934,0.001,2426.7,2426.5,1.91873305]
[1750964480424,0.001,2426.7,2426.5,0.9665]
[1750964485104,0.001,2426.7,2426.5,0.2056]
[1750964485438,0.001,2426.7,2426.4,0.2056]
[1750964491065,0.001,2426.7,2426.6,8.55583052]
[1750964491265,0.001,2426.7,2426.6,41.40803652]
[1750964491441,0.001,2426.7,2426.6,47.75877476]
[1750964491777,0.001,2426.7,2426.6,49.79233533]
[1750964492265,0.001,2426.7,2426.6,45.671343]
[1750964492465,0.001,2426.7,2426.6,60.780703]
[1750964492840,0.001,2426.7,2426.6,64.90169533]
[1750964493042,0.001,2426.7,2426.6,53.37406]
[1750964493469,0.001,2426.7,2426.6,53.33605]
[1750964493843,0.001,2427.0,2426.8,40.0]
[1750964494047,0.001,2427.0,2426.9,55.31595476]
[1750964495479,0.001,2427.3,2426.9,55.31595476]
[1750964495480,0.001,2427.3,2427.2,0.8102]
[1750964495638,0.001,2427.3,2427.2,39.23501052]
[1750964495973,0.001,2427.3,2427.2,39.44061052]
[1750964498278,0.001,2427.3,2427.2,42.84061052]
[1750964498577,0.001,2427.3,2427.2,45.33459535]
[1750964498756,0.001,2427.3,2427.2,41.93459535]
[1750964499090,0.001,2427.3,2427.2,58.76761535]
[1750964499463,0.001,2427.5,2427.3,10.0]
[1750964499675,0.001,2427.5,2427.4,33.00222536]
[1750964499977,0.001,2427.5,2427.4,33.20782536]
[1750964500162,0.001,2427.5,2427.4,20.52186536]
[1750964500666,0.001,2427.5,2427.4,18.52186536]
[1750964500847,0.001,2427.5,2427.4,15.10866483]
[1750964501050,0.001,2427.5,2427.4,17.13433983]
[1750964502161,0.001,2427.5,2427.4,35.30523483]
[1750964502549,0.001,2427.5,2427.4,30.90384283]
[1750964502976,0.001,2427.5,2427.4,30.66678883]
[1750964503156,0.001,2427.5,2427.4,10.21126483]
[1750964503360,0.001,2427.5,2427.4,32.94353983]
[1750964504178,0.001,2427.5,2427.4,54.330899]
[1750964504360,0.001,2427.5,2427.4,50.21126483]
[1750964504772,0.001,2427.5,2427.4,54.330899]
[1750964505146,0.001,2427.5,2427.4,24.330899]
[1750964505348,0.001,2427.5,2427.4,54.330899]
[1750964505991,0.001,2428.0,2427.9,10.0]
[1750964506190,0.001,2428.0,2427.9,54.61762052]
[1750964506353,0.001,2428.0,2427.9,61.95493052]
[1750964506779,0.001,2428.0,2427.9,66.0737163]
[1750964506993,0.001,2428.3,2428.2,10.8285]
[1750964507156,0.001,2428.3,2428.2,56.08233052]
[1750964507486,0.001,2428.3,2428.2,30.30125476]
[1750964507699,0.001,2428.3,2428.2,23.47542424]
[1750964507988,0.001,2428.3,2428.2,6.9036]
[1750964510591,0.001,2428.3,2428.2,15.45943052]
[1750964510796,0.001,2428.3,2428.2,25.45943052]
[1750964510990,0.001,2428.3,2428.2,26.24953052]
[1750964511874,0.001,2428.3,2428.2,47.40476452]
[1750964512194,0.001,2428.3,2428.2,51.41808876]
[1750964512496,0.001,2428.3,2428.2,30.26285476]
[1750964512698,0.001,2428.3,2428.2,57.56528876]
[1750964512900,0.001,2428.3,2428.2,53.67746276]
[1750964513201,0.001,2428.3,2428.2,53.47057876]
[1750964513898,0.001,2428.3,2428.2,57.95265576]
[1750964514400,0.001,2428.3,2428.2,52.92455576]
[1750964514761,0.001,2428.3,2428.2,58.09846776]
[1750964515798,0.001,2428.3,2428.2,30.26285476]
[1750964515986,0.001,2428.3,2428.2,60.26285476]
[1750964516390,0.001,2428.3,2428.2,63.66285476]
[1750964517296,0.001,2428.3,2428.2,67.78113167]
[1750964517501,0.001,2428.3,2428.2,63.66285476]
[1750964517899,0.001,2428.3,2428.2,33.66285476]
[1750964518210,0.001,2428.3,2428.2,63.66285476]
[1750964519071,0.001,2428.3,2428.2,47.39356976]
[1750964520207,0.001,2428.3,2428.2,63.66285476]
[1750964520411,0.001,2429.1,2428.5,0.833]
[1750964520622,0.001,2429.1,2428.4,10.0]
[1750964520623,0.001,2429.1,2429.0,10.0]
[1750964520778,0.001,2429.1,2429.0,16.9006]
[1750964522844,0.001,2429.1,2429.0,10.2056]
[1750964522845,0.8321,2429.1,2429.0,10.2056]
[1750964523001,0.8321,2429.1,2429.0,16.8996]
[1750964525928,0.001,2429.1,2429.0,16.8996]
[1750964526110,0.001,2429.1,2429.0,19.69656305]
[1750964527104,0.2184829,2429.5,2429.2,30.0]
[1750964527357,0.2184829,2429.5,2429.4,32.67223152]
[1750964527505,0.2184829,2429.5,2429.4,35.16683152]
[1750964527707,0.2184829,2429.5,2429.4,38.2528029]
[1750964528137,0.2184829,2429.5,2429.4,52.6999599]
[1750964528348,0.2184829,2429.5,2429.4,56.81620259]
[1750964529104,0.2184829,2429.5,2429.4,58.25264459]
[1750964529811,0.7671,2430.4,2429.8,23.59266]
[1750964530039,0.7671,2430.4,2430.0,8.55583052]
[1750964530340,0.7671,2430.4,2429.9,8.427]
[1750964530708,14.11361033,2431.0,2429.9,8.427]
[1750964530943,0.7671,2430.9,2430.0,10.7546]
[1750964531150,0.7671,2430.5,2430.0,18.78671]
[1750964531353,0.7671,2430.5,2430.0,19.87001]
[1750964532151,0.7671,2430.5,2430.0,19.86582]
[1750964533039,0.7671,2430.5,2430.0,20.17930835]
[1750964533235,0.7671,2430.5,2430.0,21.00932]
[1750964533436,0.7671,2430.5,2430.0,8.423]
[1750964533641,10.55,2431.2,2429.6,10.8273]
[1750964533642,0.7589,2430.0,2429.8,6.697]
[1750964534180,0.7589,2430.0,2429.9,10.0]
[1750964534628,0.7589,2430.0,2429.3,0.8273]
[1750964534828,0.7589,2430.0,2429.4,8.425]
[1750964535028,0.7589,2430.0,2429.5,10.0]
[1750964535228,0.7589,2430.0,2429.6,6.698]
[1750964536768,1.24639579,2430.0,2429.6,6.698]
[1750964536970,0.8003,2429.9,2429.6,6.698]
[1750964537275,0.8003,2429.9,2429.7,0.2056]
[1750964537440,0.8003,2429.9,2429.4,8.423]
[1750964537640,0.8003,2429.9,2429.5,0.2056]
[1750964546095,0.8003,2429.9,2429.8,0.2056]
[1750964547199,0.001,2430.1,2429.8,9.4072]
[1750964547705,0.001,2430.1,2430.0,0.2056]
[1750964552387,0.001,2430.1,2430.0,18.73389284]
[1750964553082,0.001,2430.1,2430.0,19.03716615]
[1750964553409,0.001,2430.1,2430.0,22.20104277]
[1750964554701,0.7882,2430.8,2430.1,10.0]
[1750964555013,0.7882,2430.8,2430.7,0.2056]
[1750964558486,0.7882,2430.8,2430.6,0.2056]
[1750964559290,0.8061,2430.7,2430.4,0.2056]
[1750964559585,0.8061,2430.7,2429.5,0.60589107]
[1750964559586,4.11485798,2430.3,2429.5,0.60589107]
[1750964559904,4.11485798,2430.3,2429.1,3.29507137]
[1750964559905,0.7732,2430.0,2429.7,0.2056]
[1750964560214,0.7732,2430.0,2429.0,9.33469284]
[1750964560215,0.7732,2430.0,2429.3,10.0]
[1750964560379,0.7732,2430.0,2429.6,0.2056]
[1750964563717,0.7732,2430.0,2429.7,0.2056]
[1750964564898,0.9954,2430.2,2429.7,0.2056]
[1750964565488,0.7898,2430.2,2429.5,0.8007]
[1750964565830,0.7898,2430.2,2430.0,0.2056]
[1750964569041,0.783,2430.4,2430.0,0.8227]
[1750964569342,0.783,2430.4,2430.2,0.2056]
[1750964571608,0.8141,2430.6,2430.2,0.2056]
[1750964571842,0.8141,2430.6,2430.3,0.2056]
[1750964572135,5.9115497,2430.8,2430.1,1.727]
[1750964572336,2.02232036,2430.8,2430.4,0.2056]
[1750964572639,3.00589695,2430.8,2430.4,0.2056]
[1750964572841,1.0197,2430.8,2430.4,0.2056]
[1750964575943,5.13360882,2430.8,2430.4,0.2056]
[1750964576334,5.13364069,2430.8,2430.4,0.2056]
[1750964576541,6.11721728,2430.8,2430.4,0.2056]
[1750964576738,2.00327659,2430.8,2430.4,0.2056]
[1750964576938,4.20370425,2430.8,2430.4,0.2056]
[1750964577139,1.0197,2430.8,2430.4,0.2056]
[1750964577371,2.00327659,2430.8,2430.4,0.2056]
[1750964577655,1.0197,2430.8,2430.4,0.2056]
[1750964577852,2.00327659,2430.8,2430.4,0.2056]
[1750964578023,2.00327659,2430.8,2430.4,1.0305]
[1750964578424,1.0197,2430.8,2430.4,1.0305]
[1750964579850,0.2056,2430.8,2430.4,1.0305]
[1750964581669,0.98357659,2430.9,2430.5,0.2056]
[1750964583437,5.0972964,2430.9,2430.5,0.2056]
[1750964583652,7.96398663,2430.9,2430.5,0.2056]
[1750964583859,3.85026682,2430.9,2430.5,0.2056]
[1750964584276,7.96398407,2430.9,2430.5,0.2056]
[1750964584480,3.85026682,2430.9,2430.5,0.2056]
[1750964585481,0.98357659,2430.8,2430.5,0.2056]
[1750964585681,3.85026682,2430.9,2430.5,0.2056]
[1750964586261,0.98357659,2430.8,2430.5,0.2056]
[1750964589482,0.98357659,2430.7,2430.5,0.2056]
[1750964589680,0.98357659,2430.8,2430.5,0.2056]
[1750964590179,0.98357659,2430.7,2430.5,0.2056]
[1750964590485,0.98357659,2430.8,2430.5,0.2056]
[1750964590652,0.98357659,2430.7,2430.5,0.2056]
[1750964590853,0.98357659,2430.8,2430.5,0.2056]
[1750964591054,0.98357659,2430.7,2430.5,0.2056]
[1750964591271,0.98357659,2430.8,2430.5,0.2056]
[1750964591585,1.77997806,2430.7,2430.5,0.2056]
[1750964591782,0.79640147,2430.7,2430.5,0.2056]
[1750964591980,2.56567806,2430.7,2430.5,0.2056]
[1750964592180,6.69,2430.6,2430.1,1.727]
[1750964592400,6.69,2430.6,2430.2,0.2056]
[1750964592683,6.69,2430.6,2429.4,10.284]
[1750964592684,4.11501077,2430.2,2429.6,0.771]
[1750964592875,4.11501077,2430.2,2429.7,0.2056]
[1750964592876,11.01061077,2430.2,2429.7,0.2056]
[1750964593189,11.99418736,2430.2,2429.7,0.2056]
[1750964593372,7.87917659,2430.2,2429.7,0.2056]
[1750964593759,6.8956,2430.2,2429.7,0.2056]
[1750964593965,7.87917659,2430.2,2429.7,0.2056]
[1750964594166,11.99407861,2430.2,2429.7,2.15603723]
[1750964594486,7.87917659,2430.2,2429.7,2.15603723]
[1750964594709,6.8956,2430.2,2429.7,2.15603723]
[1750964595284,6.8956,2430.2,2429.8,8.52777231]
[1750964595485,1.76177659,2430.3,2429.8,8.52777231]
[1750964595692,6.69,2430.2,2429.9,1.25342095]
[1750964596414,8.45177659,2430.3,2429.9,1.25342095]
[1750964596579,8.45177659,2430.3,2429.9,0.2056]
[1750964596873,12.56650857,2430.3,2429.9,0.2056]
[1750964597078,0.98357659,2430.2,2429.9,0.2056]
[1750964598310,5.09849693,2430.2,2429.9,0.2056]
[1750964599110,5.09853684,2430.2,2429.5,10.0]
[1750964599417,0.2056,2430.1,2429.7,0.2056]
[1750964600111,4.32067448,2430.1,2429.7,0.2056]
[1750964600316,0.7844,2430.0,2429.7,0.2056]
[1750964600617,0.7844,2430.0,2429.5,10.0]
[1750964600807,0.7844,2430.0,2429.5,10.2056]
[1750964600808,0.99,2430.0,2429.5,10.2056]
[1750964601113,0.99,2430.0,2429.5,12.67237723]
[1750964601831,5.43886964,2429.9,2429.0,0.8294]
[1750964601998,8.0134,2429.9,2429.0,9.35717231]
[1750964602195,0.7734,2429.9,2429.4,0.8274]
[1750964602396,7.4644,2430.1,2429.6,8.52777231]
[1750964602593,6.691,2430.1,2429.6,8.52777231]
[1750964602921,0.98357659,2430.2,2429.6,8.52777231]
[1750964602922,7.67457659,2430.2,2429.6,8.52777231]
[1750964603102,6.691,2430.2,2429.6,8.92967063]
[1750964603286,7.67457659,2430.2,2429.6,8.92967063]
[1750964603613,6.691,2430.2,2429.7,0.8274]
[1750964604122,7.67457659,2430.2,2429.7,0.8274]
[1750964604509,6.691,2430.2,2429.7,0.8274]
[1750964604909,1.75697659,2430.3,2429.7,0.8274]
[1750964605082,6.691,2430.2,2429.7,0.8274]
[1750964605284,1.75697659,2430.3,2429.8,0.97570706]
[1750964605624,6.691,2430.2,2429.8,0.97570706]
[1750964606190,7.67457659,2430.2,2429.7,0.8274]
[1750964606742,11.78947632,2430.2,2429.7,0.8274]
[1750964606899,11.78947632,2430.2,2429.4,0.8274]
[1750964606900,0.7734,2430.0,2429.4,0.8274]
[1750964607245,0.7734,2430.0,2429.4,9.35517231]
[1750964607433,0.7734,2430.0,2429.5,1.93551723]
[1750964607796,1.53357659,2430.1,2429.5,1.93551723]
[1750964608597,0.55,2430.1,2429.5,1.93551723]
[1750964608798,1.53357659,2430.1,2429.5,1.93551723]
[1750964609997,0.55,2430.1,2429.5,1.93551723]
[1750964611028,6.691,2430.1,2429.5,1.93551723]
[1750964611329,4.11480653,2430.3,2429.7,8.52777231]
[1750964611330,0.98427704,2430.3,2429.7,8.52777231]
[1750964611535,6.693,2430.1,2429.7,8.52777231]
[1750964611826,6.693,2430.1,2430.0,0.2056]
[1750964613713,0.98427704,2430.3,2430.0,0.2056]
[1750964613914,6.698,2430.3,2430.0,0.9762]
[1750964614532,7.68227704,2430.3,2430.0,0.9762]
[1750964614952,0.98427704,2430.3,2430.0,0.9762]
[1750964618338,1.18987704,2430.4,2430.0,0.9762]
[1750964618631,2.64060777,2430.4,2430.0,0.9762]
[1750964619719,1.18987704,2430.4,2430.0,0.9762]
[1750964621357,0.98427704,2430.3,2430.0,0.9762]
[1750964622355,0.98427704,2430.2,2430.0,0.9762]
[1750964622521,0.98427704,2430.3,2430.0,0.9762]
[1750964622724,0.98427704,2430.2,2430.0,0.9762]
[1750964622925,0.98427704,2430.3,2430.0,0.2056]
[1750964623124,0.98427704,2430.2,2430.0,0.2056]
[1750964623364,0.98427704,2430.3,2430.0,0.2056]
[1750964623565,0.98427704,2430.2,2430.0,0.2056]
[1750964623771,0.98427704,2430.3,2430.0,0.2056]
[1750964623954,0.98427704,2430.2,2430.0,0.2056]
[1750964624462,0.8193,2430.1,2430.0,0.2056]
[1750964624641,13.15978494,2430.1,2429.4,0.7679]
[1750964624972,0.55,2429.9,2429.4,0.7679]
[1750964625255,0.98427704,2430.0,2429.4,1.84469]
[1750964625459,8.49457704,2430.1,2429.4,1.84469]
[1750964625656,0.8193,2430.1,2429.4,1.84469]
[1750964625858,6.696,2430.1,2429.5,8.52777231]
[1750964626060,7.68027704,2430.1,2429.6,0.7535]
[1750964626249,6.696,2430.1,2429.6,1.78930623]
[1750964627058,0.98427704,2430.0,2429.6,0.7535]
[1750964628124,0.98427704,2430.0,2429.4,0.8224]
[1750964628125,0.779,2429.9,2429.4,0.8224]
[1750964628450,1.76327704,2429.9,2429.4,0.8224]
[1750964628638,1.76327704,2429.9,2429.2,11.727]
[1750964628958,5.64992689,2429.8,2429.2,11.727]
[1750964629146,5.64992689,2429.8,2429.2,1.727]
[1750964629347,0.55,2429.6,2429.0,0.002]
[1750964629530,0.55,2429.6,2429.0,10.002]
[1750964629531,7.249,2429.6,2429.0,10.002]
[1750964634629,7.4546,2429.6,2429.1,0.2056]
[1750964638070,11.57052327,2429.6,2429.1,0.2056]
[1750964638365,9.37927901,2429.6,2429.1,0.2056]
[1750964638565,14.48001695,2429.6,2429.1,0.2056]
[1750964638754,13.49525651,2429.6,2429.1,0.2056]
[1750964638952,9.37927901,2429.6,2429.1,0.2056]
[1750964639151,10.3640406,2429.6,2429.1,0.2056]
[1750964639358,7.4546,2429.6,2429.1,0.2056]
[1750964640239,0.2056,2429.6,2429.1,0.2056]
[1750964640440,0.7858,2430.2,2429.4,0.787]
[1750964640657,0.2056,2430.0,2429.5,0.2056]
[1750964640856,1.19036159,2430.0,2429.5,0.2056]
[1750964641060,0.2056,2430.0,2429.5,0.2056]
[1750964641288,1.19036159,2430.0,2429.5,0.2056]
[1750964641566,4.32082917,2430.0,2429.5,0.2056]
[1750964641769,6.58390336,2430.0,2429.5,0.2056]
[1750964642069,5.59914177,2430.0,2429.5,0.2056]
[1750964642257,6.58390336,2430.0,2429.5,0.2056]
[1750964642461,5.59914177,2430.0,2429.5,0.2056]
[1750964642641,6.58390336,2430.0,2429.5,0.2056]
[1750964642963,5.59914177,2430.0,2429.5,0.2056]
[1750964643166,6.58390336,2430.0,2429.5,0.2056]
[1750964643466,5.59914177,2430.0,2429.5,0.2056]
[1750964643649,6.58390336,2430.0,2429.5,0.2056]
[1750964643854,5.59914177,2430.0,2429.5,0.2056]
[1750964644042,6.58390336,2430.0,2429.5,0.2056]
[1750964644373,5.59914177,2430.0,2429.5,0.2056]
[1750964644559,6.58390336,2430.0,2429.5,0.2056]
[1750964644750,5.59914177,2430.0,2429.5,0.2056]
[1750964644947,1.06990021,2429.9,2429.5,0.2056]
[1750964645147,0.9733,2429.8,2429.3,0.2056]
[1750964645347,0.2056,2429.8,2429.3,0.2056]
[1750964647856,0.55,2429.7,2429.3,0.2056]
[1750964648170,0.2056,2429.6,2429.2,0.7683]
[1750964648474,0.2056,2429.6,2429.2,1.03859]
[1750964649375,0.2056,2429.6,2429.0,1.729]
[1750964649376,11.61076171,2429.5,2429.0,0.002]
[1750964650058,7.4946,2429.5,2429.0,0.002]
[1750964650239,6.693,2429.5,2429.0,0.002]
[1750964650440,0.98458276,2429.7,2429.1,0.8017]
[1750964650787,0.55,2429.8,2429.1,0.8017]
[1750964651079,5.97974918,2429.8,2429.1,0.8017]
[1750964651371,4.11575191,2429.7,2429.1,0.8017]
[1750964651575,6.96438656,2429.8,2429.1,0.8017]
[1750964652591,2.84873389,2429.8,2429.1,0.8017]
[1750964653188,0.98458276,2429.8,2429.1,10.0]
[1750964653375,0.98458276,2429.7,2429.2,0.7806]
[1750964653577,0.98458276,2429.9,2429.2,0.7806]
[1750964653979,5.0999968,2429.9,2429.2,0.7806]
[1750964654492,0.98458276,2429.8,2429.2,0.7806]
[1750964654788,0.98458276,2429.9,2429.4,0.7728]
[1750964654998,0.98458276,2429.8,2429.4,0.7728]
[1750964655293,0.98458276,2429.9,2429.4,0.7728]
[1750964655600,0.98458276,2429.8,2429.4,0.7728]
[1750964655796,0.98458276,2429.9,2429.4,0.7728]
[1750964656202,0.55,2429.9,2429.4,1.70285723]
[1750964656371,4.665744,2429.7,2429.1,0.7599]
[1750964656779,0.55,2429.4,2429.1,0.7599]
[1750964656978,0.55,2429.4,2429.0,0.002]
[1750964656979,4.89313903,2429.4,2429.0,0.002]
[1750964657177,0.7768,2429.4,2429.0,0.002]
[1750964657364,3.48673114,2429.4,2429.0,0.002]
[1750964657791,7.60298443,2429.4,2429.0,0.002]
[1750964657982,4.11642678,2429.3,2429.0,0.002]
[1750964658185,3.48673114,2429.4,2429.0,0.002]
[1750964658498,0.55,2429.1,2429.0,0.002]
[1750964658811,8.0229278,2429.1,2429.0,0.002]
[1750964659004,1.2879278,2429.1,2429.0,0.002]
[1750964659186,8.0259278,2429.1,2429.0,0.002]
[1750964659368,1.2879278,2429.1,2429.0,0.002]
[1750964659567,6.9426,2429.1,2429.0,0.002]
[1750964660874,11.60935106,2429.1,2429.0,0.002]
[1750964661081,7.4926,2429.1,2429.0,0.002]
[1750964662098,11.60935106,2429.1,2429.0,0.002]
[1750964662499,7.4926,2429.1,2429.0,0.002]
[1750964662705,9.23797992,2429.1,2429.0,0.002]
[1750964663482,13.35473098,2429.1,2429.0,0.002]
[1750964664504,9.23797992,2429.1,2429.0,0.002]
[1750964666419,2.50097992,2429.1,2429.0,0.002]
[1750964666699,0.7556,2429.1,2429.0,0.002]
[1750964666896,7.4856,2429.1,2429.0,0.002]
[1750964672907,11.60235106,2429.1,2429.0,0.002]
[1750964673670,7.4856,2429.1,2429.0,0.002]
[1750964673875,11.60235106,2429.1,2429.0,0.002]
[1750964674075,13.34705403,2429.1,2429.0,0.002]
[1750964675806,9.23030297,2429.1,2429.0,0.002]
[1750964676408,9.22030297,2429.1,2429.0,0.002]
[1750964678614,2.50030297,2429.1,2429.0,0.002]
[1750964678844,7.4726,2429.1,2429.0,0.002]
[1750964679312,0.7556,2429.1,2429.0,0.002]
[1750964679615,7.4726,2429.1,2429.0,0.002]
[1750964680216,0.2056,2429.1,2429.0,0.002]
[1750964680511,6.716,2429.1,2429.0,0.002]
[1750964681317,7.266,2429.1,2429.0,0.002]
[1750964681479,8.70827701,2429.1,2429.0,0.002]
[1750964682738,12.82502807,2429.1,2429.0,0.002]
[1750964684601,13.81018517,2429.1,2429.0,0.002]
[1750964685234,14.56578517,2429.1,2429.0,0.002]
[1750964687121,23.09355748,2429.1,2429.0,0.002]
[1750964688552,33.09355748,2429.1,2429.0,0.002]
[1750964697831,37.42555748,2429.1,2429.0,0.002]
[1750964700559,17.29978517,2429.1,2429.0,0.002]
[1750964700757,25.75578517,2429.1,2429.0,0.002]
[1750964701046,26.30578517,2429.1,2429.0,0.002]
[1750964701833,26.29578517,2429.1,2429.0,0.002]
[1750964702455,17.84978517,2429.1,2429.0,0.002]
[1750964702657,25.54018517,2429.1,2429.0,0.002]
[1750964702952,25.53918517,2429.1,2429.0,0.002]
[1750964703642,17.09418517,2429.1,2429.0,0.002]
[1750964703828,1.1907571,2429.1,2429.0,0.002]
[1750964704018,6.9146,2429.1,2429.0,0.7934]
[1750964704219,0.9851571,2429.2,2429.0,0.7934]
[1750964704220,1.1907571,2429.2,2429.0,0.7934]
[1750964704519,6.712,2429.1,2429.0,0.7934]
[1750964707057,0.2056,2429.2,2429.0,0.7934]
[1750964707255,6.708,2429.1,2429.0,0.7934]
[1750964707968,0.2056,2429.2,2429.0,0.7934]
[1750964708129,6.708,2429.1,2429.0,0.7934]
[1750964708467,6.9136,2429.1,2429.0,0.7934]
[1750964709860,6.9136,2429.1,2429.0,0.002]
[1750964711449,12.78180782,2429.1,2429.0,0.002]
[1750964712564,14.56073701,2429.1,2429.0,0.002]
[1750964718161,24.56073701,2429.1,2429.0,0.002]
[1750964718931,28.89273701,2429.1,2429.0,0.002]
[1750964719129,29.9581849,2429.1,2429.0,0.002]
[1750964719528,29.44847368,2429.1,2429.0,0.002]
[1750964719743,28.89273701,2429.1,2429.0,0.002]
[1750964720251,19.82259861,2428.6,2428.0,0.002]
[1750964720449,39.76805997,2428.6,2428.0,0.002]
[1750964720637,5.49127691,2428.2,2428.0,0.002]
[1750964720854,30.73804922,2428.2,2428.0,0.002]
[1750964721048,31.72247841,2428.2,2428.0,0.002]
[1750964722572,32.05113386,2428.2,2428.0,0.002]
[1750964722775,33.14475404,2428.2,2428.0,0.002]
[1750964722957,32.81609859,2428.2,2428.0,0.002]
[1750964723160,40.68609859,2428.2,2428.0,0.002]
[1750964724287,41.00938452,2428.2,2428.0,0.002]
[1750964725954,42.42609859,2428.2,2428.0,0.002]
[1750964726163,42.74426336,2428.2,2428.0,0.002]
[1750964732494,42.42609859,2428.2,2428.0,0.002]
[1750964733060,42.74573281,2428.2,2428.0,0.002]
[1750964733294,0.55,2427.9,2427.1,0.002]
[1750964733596,4.66997363,2427.2,2427.1,0.002]
[1750964733801,13.12397363,2427.2,2427.1,0.002]
[1750964734706,4.66997363,2427.2,2427.1,0.002]
[1750964734904,13.12497363,2427.2,2427.1,0.002]
[1750964735088,14.32643039,2427.2,2427.1,0.002]
[1750964735294,14.32443039,2427.2,2427.1,0.002]
[1750964736406,5.87143039,2427.2,2427.1,0.002]
[1750964736609,9.003,2427.2,2427.1,0.002]
[1750964737706,0.55,2427.2,2427.1,0.002]
[1750964737908,9.002,2427.2,2427.1,0.002]
[1750964738909,1.56640147,2428.1,2427.2,0.8101]
[1750964739210,4.11891013,2427.9,2427.2,0.8101]
[1750964739375,0.2056,2427.7,2427.2,0.8101]
[1750964739709,0.2056,2427.5,2427.2,0.8101]
[1750964739914,6.72,2427.4,2427.2,0.8101]
[1750964740807,0.2056,2427.3,2427.2,0.8101]
[1750964740996,6.726,2427.3,2427.2,0.8101]
[1750964741203,6.726,2427.3,2427.2,1.95088723]
[1750964741607,6.726,2427.3,2427.2,1.0169]
[1750964741792,0.2056,2427.6,2427.3,0.7614]
[1750964741992,6.727,2427.5,2427.3,0.7614]
[1750964743093,0.2056,2427.6,2427.3,0.7614]
[1750964743294,6.727,2427.5,2427.3,0.967]
[1750964743521,6.727,2427.5,2427.3,0.7614]
[1750964744689,10.84651903,2427.5,2427.3,0.7614]
[1750964744915,0.2056,2427.4,2427.3,0.7614]
[1750964746736,1.86079699,2427.4,2427.3,0.7614]
[1750964747031,1.86079699,2427.4,2427.1,0.7539]
[1750964747213,0.2056,2427.3,2427.1,0.7539]
[1750964747413,6.729,2427.2,2427.1,0.7539]
[1750964747862,7.279,2427.2,2427.1,0.7539]
[1750964748152,11.39897363,2427.2,2427.1,0.002]
[1750964748306,13.12475466,2427.2,2427.1,0.002]
[1750964748703,9.00478103,2427.2,2427.1,0.002]
[1750964748903,7.279,2427.2,2427.1,0.002]
[1750964749453,5.85867733,2427.4,2427.1,0.8182]
[1750964749454,0.2056,2427.4,2427.1,0.8182]
[1750964749631,6.9416,2427.6,2427.1,0.2076]
[1750964749839,6.75,2427.5,2427.2,0.8162]
[1750964750145,0.8234,2428.1,2427.4,0.8162]
[1750964750146,0.2056,2427.7,2427.4,0.8162]
[1750964750443,6.75,2427.6,2427.4,0.8162]
[1750964751804,1.19083621,2427.7,2427.4,0.8162]
[1750964752005,6.749,2427.8,2427.5,0.2056]
[1750964752342,0.98523621,2427.7,2427.6,0.7843]
[1750964753341,7.73223621,2427.9,2427.6,0.7843]
[1750964753634,0.98523621,2427.8,2427.6,0.7843]
[1750964753839,7.73223621,2427.9,2427.6,0.7843]
[1750964754811,6.747,2427.9,2427.6,0.7843]
[1750964755639,0.55,2427.8,2427.6,0.7843]
[1750964755827,0.2056,2427.7,2427.6,0.7843]
[1750964756030,0.7556,2427.7,2427.2,0.2056]
[1750964756217,0.55,2427.4,2427.2,0.2056]
[1750964756538,0.2056,2427.2,2427.1,0.8244]
[1750964756741,0.7556,2427.2,2427.1,0.8244]
[1750964756922,0.7556,2427.2,2427.1,0.002]
[1750964757538,4.87557363,2427.2,2427.1,0.002]
[1750964757847,6.4494103,2427.2,2427.1,0.002]
[1750964758428,2.32943667,2427.2,2427.1,0.002]
[1750964758628,6.4494103,2427.2,2427.1,0.002]
[1750964760446,2.32943667,2427.2,2427.1,0.002]
[1750964760748,6.4494103,2427.2,2427.1,0.002]
[1750964761747,7.43496994,2427.2,2427.1,0.002]
[1750964762847,18.26346994,2427.2,2427.1,0.002]
[1750964763054,26.74846994,2427.2,2427.1,0.002]
[1750964763616,3.31499631,2427.2,2427.1,0.002]
[1750964763935,9.2626,2427.2,2427.1,0.002]
[1750964764114,10.24815964,2427.2,2427.1,0.002]
[1750964765341,9.2626,2427.2,2427.1,0.002]
[1750964765653,7.94315964,2427.2,2427.1,0.002]
[1750964765822,8.2862,2427.2,2427.1,0.002]
[1750964766021,13.50924959,2427.2,2427.1,0.002]
[1750964766352,14.49480923,2427.2,2427.1,0.002]
[1750964769422,13.71620923,2427.2,2427.1,0.002]
[1750964769629,6.96420923,2427.2,2427.1,0.002]
[1750964769831,6.9526,2427.2,2427.1,0.7592]
[1750964770150,7.5026,2427.2,2427.1,0.002]
[1750964771043,11.62257363,2427.2,2427.1,0.002]
[1750964771248,12.60698538,2427.2,2427.1,0.002]
[1750964771957,14.36598538,2427.2,2427.1,0.002]